fUSD/lending_fUSD_20250305
["ID","MTS","AMOUNT","RATE_DAILY","PERIOD"]
[355442831,1741164646286,-1466.45,0.00011578,2]
[355442833,1741164646297,-8143.05,0.00011578,2]
[355442834,1741164646309,-301.63219179,0.00011578,2]
[355442835,1741164646320,-300.0,0.00011578,2]
[355442836,1741164646331,-102628.51068065,0.00011578,2]
[355442837,1741164646352,-2099.00330939,0.00011578,2]
[355442838,1741164646365,-624.83776703,0.00011578,2]
[355442839,1741164646471,-261.27522513,0.00011578,2]
[355442846,1741165194792,150.0,0.00010102,2]
[355442847,1741165194855,150.0,0.00010231,2]
[355442849,1741165249912,517.16,8.356e-05,2]
[355442851,1741165451938,250.0,0.00010215,2]
[355442853,1741165729932,176.24,0.00010203,2]
[355442867,1741165795097,2000.0,0.00010212,2]
[355442872,1741165832106,-500.0,0.00010247,2]
[355442873,1741165832116,-300.0,0.00010282,2]
[355442874,1741165832125,-1285.94825,0.00010283,2]
[355442875,1741165832160,-22614.05175,0.00010283,2]
[355442876,1741165832170,-240.78,0.00010285,2]
[355442877,1741165832180,-2383.14595571,0.00010332,2]
[355442878,1741165832191,-200.0,0.00010332,2]
[355442879,1741165832201,-480.08,0.00010352,2]
[355442880,1741165832211,-1000.0,0.00010376,2]
[355442881,1741165832221,-164.21,0.0001039,2]
[355442882,1741165832231,-1545.16,0.00010421,2]
[355442883,1741165832240,-517.16,0.0001062,2]
[355442884,1741165832249,-150.0,0.0001063,7]
[355442885,1741165832259,-1118.82,0.0001063,2]
[355442886,1741165832269,-500.51,0.00010699,2]
[355442887,1741165832279,-150.0,0.00010716,2]
[355442888,1741165832290,-150.0,0.00010801,2]
[355442889,1741165832299,-276.0,0.0001095,2]
[355442890,1741165832310,-150.0,0.00010959,2]
[355442891,1741165832320,-150.0,0.00010992,2]
[355442892,1741165832331,-276.0,0.0001124,2]
[355442893,1741165832340,-150.0,0.00011299,2]
[355442894,1741165832350,-570.86225106,0.000113,2]
[355442895,1741165832359,-570.86225086,0.000113,2]
[355442896,1741165832369,-570.86225086,0.000113,2]
[355442897,1741165832379,-570.86225086,0.000113,2]
[355442898,1741165832388,-570.86225086,0.000113,2]
[355442899,1741165832397,-570.86225086,0.000113,2]
[355442900,1741165832407,-420.0,0.00011307,2]
[355442901,1741165832416,-570.86225086,0.00011314,2]
[355442902,1741165832426,-433.48384815,0.00011346,2]
[355442903,1741165832435,-150.0,0.00011366,2]
[355442904,1741165832445,-570.86225086,0.00011383,2]
[355442905,1741165832455,-167.36342416,0.00011392,2]
[355442906,1741165832464,-313.71295704,0.00011392,2]
[355442907,1741165832474,-1017.0,0.000114,2]
[355442908,1741165832484,-570.86225086,0.00011452,2]
[355442909,1741165832493,-3142.342646,0.0001147,2]
[355442910,1741165832503,-256.34602231,0.0001147,2]
[355442911,1741165832513,-500.0,0.00011473,2]
[355442912,1741165832523,-160.31577358,0.00011473,2]
[355442913,1741165832533,-160.23382339,0.00011473,2]
[355442914,1741165832542,-160.23382526,0.00011473,2]
[355442915,1741165832552,-159.07424408,0.00011473,2]
[355442916,1741165832561,-160.23382339,0.00011473,2]
[355442917,1741165832571,-160.23382526,0.00011473,2]
[355442918,1741165832580,-1068.12146043,0.00011475,2]
[355442919,1741165832590,-1937.7163,0.00011475,2]
[355442920,1741165832599,-1830.7364,0.00011475,2]
[355442921,1741165832609,-2875.9971,0.00011476,2]
[355442922,1741165832620,-1920.4061,0.00011476,2]
[355442923,1741165832630,-3033.8701,0.00011476,2]
[355442924,1741165832640,-440.24506858,0.00011476,2]
[355442925,1741165832650,-675.3288,0.00011477,2]
[355442926,1741165832660,-168.96678325,0.00011479,2]
[355442927,1741165832671,-500.0,0.00011479,2]
[355442928,1741165832682,-539.57113263,0.00011479,2]
[355442929,1741165832691,-500.0,0.00011479,2]
[355442930,1741165832702,-1382.78,0.00011479,2]
[355442931,1741165832711,-718.28,0.00011479,2]
[355442932,1741165832721,-772.09,0.00011479,2]
[355442933,1741165832730,-90118.8314848,0.0001148,2]
[355442934,1741165832740,-382256.86462099,0.0001148,2]
[355442935,1741165832763,-2360.0,0.0001148,2]
[355442936,1741165832805,-3614.97335,0.0001148,2]
[355442937,1741165832828,-8138.30693806,0.0001148,2]
[355442938,1741165832855,-8555.00828986,0.0001148,2]
[355442939,1741165832868,-42695.67826263,0.0001148,2]
[355442950,1741165837983,-817.02,0.00011479,2]
[355442951,1741165837995,-16873.27408861,0.0001148,2]
[355442952,1741165838008,-121565.66292786,0.0001148,2]
[355442953,1741165838037,-9260.05823244,0.0001148,2]
[355442954,1741165838051,-3202.013292,0.0001148,2]
[355442955,1741165838159,-491.99999916,0.0001148,2]
[355442956,1741165838173,-261.7,0.0001148,2]
[355442957,1741165838186,-1072.35,0.0001148,2]
[355442958,1741165838218,-1857.34603637,0.0001148,2]
[355443002,1741165840087,-1203.2499875,0.0001148,2]
[355443003,1741165840147,-47399.40008658,0.0001148,2]
[355443004,1741165840247,-12021.23963185,0.0001148,2]
[355443005,1741165840301,-2114.20561369,0.0001148,2]
[355443006,1741165840355,-2392.72956612,0.0001148,2]
[355443040,1741165844022,-15853.86,0.0001148,2]
[355443041,1741165844044,-17138.32760273,0.0001148,2]
[355443044,1741165846122,-857.82849578,0.0001148,2]
[355443045,1741165846133,-197506.32783516,0.0001148,2]
[355443051,1741166155169,150.0,9.537e-05,2]
[355443052,1741166155316,150.0,0.00010045,2]
[355443053,1741166155387,150.0,9.935e-05,2]
[355443054,1741166155428,150.0,9.636e-05,2]
[355443055,1741166155613,150.0,0.00010053,2]
[355443056,1741166215786,150.0,0.00010183,2]
[355443057,1741166215939,150.0,9.451e-05,2]
[355443058,1741166215985,150.0,9.68e-05,2]
[355443059,1741166216075,150.0,9.517e-05,2]
[355443060,1741166216215,150.0,9.709e-05,2]
[355443061,1741166216379,150.0,9.771e-05,2]
[355443062,1741166216438,150.0,9.508e-05,2]
[355443063,1741166217104,162.55,0.00010065,2]
[355443064,1741166217400,162.55,0.00010155,2]
[355443065,1741166232450,339.99,9.983e-05,2]
[355443066,1741166249856,1000.0,9.983e-05,2]
[355443067,1741166254321,591.96,8.219e-05,2]
[355443068,1741166268225,1000.0,8.894e-05,2]
[355443069,1741166334498,150.0,9.736e-05,2]
[355443070,1741166405955,7603.233392,0.00010193,2]
[355443071,1741166454583,150.0,9.063e-05,2]
[355443072,1741166516568,250.0,0.00010014,2]
[355443073,1741166533455,200.0,0.00010037,2]
[355443074,1741166704944,23900.0,9.893e-05,2]
[355443075,1741166825896,1500.0,0.00010025,2]
[355443081,1741166933075,3821.73,0.00010123,2]
[355443082,1741166947699,9618.55664347,0.00010234,2]
[355443097,1741166970379,176.24,0.00010123,2]
[355443101,1741166995806,800.9,0.00010136,2]
[355443105,1741167005559,1852.42,0.0001015,2]
[355443116,1741167032397,-162.55,0.00010244,2]
[355443117,1741167032407,-150.0,0.0001026,2]
[355443118,1741167032416,-4852.25101642,0.00010275,2]
[355443119,1741167032428,-1793.94362049,0.00010275,2]
[355443120,1741167032456,-5870.47946309,0.00010275,2]
[355443121,1741167032466,-162.55,0.00010334,2]
[355443122,1741167032477,-162.55,0.00010423,2]
[355443123,1741167032487,-591.96,0.00010475,2]
[355443124,1741167032496,-293.8,0.00010484,2]
[355443125,1741167032506,-162.55,0.00010513,2]
[355443126,1741167032516,-150.0,0.0001054,7]
[355443127,1741167032526,-162.55,0.00010602,2]
[355443128,1741167032536,-162.55,0.00010692,2]
[355443129,1741167032545,-510.94827415,0.00010697,2]
[355443130,1741167032557,-162.55,0.00010781,2]
[355443131,1741167032567,-162.55,0.00010871,2]
[355443132,1741167032577,-5767.1054,0.000109,2]
[355443133,1741167032587,-1244.21789351,0.000109,2]
[355443134,1741167032603,-342.30290649,0.000109,2]
[355443135,1741167032613,-171.38260039,0.000109,2]
[355443136,1741167032625,-849.3640825,0.000109,2]
[355443137,1741167032659,-1029.65071711,0.000109,2]
[355443138,1741167032669,-934.08247134,0.0001099,2]
[355443139,1741167032679,-150.0,0.00010999,2]
[355443140,1741167032689,-6743.21491155,0.00011,2]
[355443141,1741167032707,-798.76112426,0.00011,2]
[355443142,1741167032782,-66234.81256717,0.00011,2]
[355443143,1741167032792,-550.0,0.00011,2]
[355443145,1741167032803,-52178.08059567,0.00011,2]
[355443147,1741167032814,-550.0,0.00011123,2]
[355443149,1741167032824,-4476.50548277,0.0001118,2]
[355443151,1741167032833,-433.48384815,0.00011193,2]
[355443153,1741167032843,-150.0,0.00011211,2]
[355443155,1741167032853,-1000.0,0.00011231,2]
[355443157,1741167032863,-1061.0,0.0001126,2]
[355443159,1741167032872,-150.0,0.00011269,2]
[355443161,1741167032882,-150.0,0.00011269,2]
[355443163,1741167032892,-1610.3846556,0.0001127,2]
[355443165,1741167032902,-2442.9951,0.0001127,2]
[355443167,1741167032912,-300.952,0.0001127,2]
[355443169,1741167032921,-1000.0,0.0001127,2]
[355443171,1741167032931,-2238.22,0.00011275,2]
[355443173,1741167032940,-179.99636944,0.00011278,2]
[355443176,1741167032950,-1428.0,0.000113,2]
[355443179,1741167032959,-406.3196089,0.000113,2]
[355443181,1741167032969,-406.31960888,0.000113,2]
[355443183,1741167032979,-406.31960888,0.000113,2]
[355443185,1741167032988,-406.31960888,0.000113,2]
[355443187,1741167032997,-406.31960888,0.000113,2]
[355443189,1741167033007,-406.31960888,0.000113,2]
[355443191,1741167033017,-406.31960888,0.00011314,2]
[355443193,1741167033027,-1610.38465552,0.00011319,2]
[355443195,1741167033038,-171.1125267,0.00011366,2]
[355443197,1741167033047,-1610.38465552,0.00011368,2]
[355443199,1741167033059,-1613.73,0.00011369,2]
[355443201,1741167033069,-1476.1,0.00011369,2]
[355443202,1741167033079,-1895.95,0.00011369,2]
[355443203,1741167033089,-1161.77,0.00011369,2]
[355443204,1741167033099,-3403.61,0.00011369,2]
[355443205,1741167033109,-1948.2192821,0.00011369,2]
[355443210,1741167038228,-474.46277282,0.000109,2]
[355443211,1741167038286,-647.02181224,0.000109,2]
[355443216,1741167038900,-1005.2085066,0.000109,2]
[355443217,1741167038914,-1766.50940834,0.000109,2]
[355443218,1741167038925,-518.9007179,0.00011369,2]
[355443219,1741167038935,-500.0,0.00011369,2]
[355443220,1741167038946,-2642.64,0.00011369,2]
[355443221,1741167038956,-765.42,0.00011369,2]
[355443222,1741167038966,-500.0,0.00011369,2]
[355443223,1741167038975,-1498.27,0.00011369,2]
[355443224,1741167038984,-751.52203378,0.00011369,2]
[355443225,1741167039005,-1151.31796622,0.00011369,2]
[355443226,1741167039016,-500.0,0.00011369,2]
[355443227,1741167039025,-548.54003378,0.00011369,2]
[355443228,1741167039037,-4306.34996622,0.00011369,2]
[355443229,1741167039046,-780.16,0.00011369,2]
[355443230,1741167039055,-1656.59003378,0.00011369,2]
[355443231,1741167039068,-787.32996622,0.00011369,2]
[355443232,1741167039077,-1724.21906378,0.00011369,2]
[355443233,1741167040601,-1620.26093622,0.00011369,2]
[355443234,1741167040611,-153.33240296,0.00011369,2]
[355443235,1741167040660,-1561.11759704,0.00011369,2]
[355443236,1741167040669,-1402.21,0.00011369,2]
[355443237,1741167040679,-24169.23,0.00011369,2]
[355443238,1741167040687,-3474.74,0.00011369,2]
[355443239,1741167040697,-1620.94,0.00011369,2]
[355443240,1741167040706,-955.78,0.00011369,2]
[355443241,1741167040719,-500.0,0.00011369,2]
[355443242,1741167040737,-2194.06,0.00011369,2]
[355443243,1741167040752,-500.0,0.00011369,2]
[355443244,1741167040763,-688.35,0.00011369,2]
[355443245,1741167040773,-1481.12,0.00011369,2]
[355443246,1741167040782,-615.9,0.00011369,2]
[355443247,1741167040791,-500.0,0.00011369,2]
[355443248,1741167040802,-739.92,0.00011369,2]
[355443249,1741167040814,-565.16,0.00011369,2]
[355443250,1741167040823,-1325.16,0.00011369,2]
[355443251,1741167040832,-1075.46,0.00011369,2]
[355443252,1741167040842,-732.34,0.00011369,2]
[355443253,1741167040851,-44298.51240296,0.0001137,2]
[355443254,1741167040869,-775.5981233,0.0001137,2]
[355443255,1741167040891,-455.78372172,0.0001137,2]
[355443292,1741167043394,-530.51616544,0.00011369,2]
[355443301,1741167043504,-599.71383456,0.00011369,2]
[355443302,1741167043513,-15344.02698334,0.0001137,2]
[355443303,1741167043565,-2841.29997,0.0001137,2]
[355443304,1741167043576,-3375.80792991,0.0001137,2]
[355443305,1741167043587,-3561.34959034,0.0001137,2]
[355443306,1741167043633,-512.32115363,0.0001137,2]
[355443309,1741167044561,-3554.4,0.0001137,2]
[355443313,1741167046326,-35963.32700628,0.0001137,2]
[355443314,1741167046336,-536.62202127,0.00011377,2]
[355443315,1741167046346,-849.1376,0.00011379,2]
[355443316,1741167046356,-3215.053,0.0001138,2]
[355443317,1741167046365,-168.96678325,0.0001138,2]
[355443318,1741167046375,-406.31960888,0.00011383,2]
[355443319,1741167046384,-5013.26289595,0.000114,2]
[355443320,1741167046394,-536.62202126,0.00011411,2]
[355443321,1741167046403,-150.0,0.00011416,2]
[355443322,1741167046413,-1610.38465552,0.00011417,2]
[355443323,1741167046422,-536.62202126,0.00011444,2]
[355443324,1741167046431,-406.31960888,0.00011452,2]
[355443325,1741167046441,-2238.22,0.00011453,2]
[355443326,1741167046450,-438.8495918,0.00011466,2]
[355443327,1741167046462,-1171.53506372,0.00011466,2]
[355443328,1741167046472,-160.6097999,0.00011473,2]
[355443329,1741167046481,-160.23383279,0.00011473,2]
[355443330,1741167046491,-160.23382729,0.00011473,2]
[355443331,1741167046501,-500.0,0.00011473,2]
[355443332,1741167046511,-1129.9141332,0.00011474,2]
[355443333,1741167046520,-324.6712,0.00011475,2]
[355443334,1741167046530,-6698.14,0.00011477,2]
[355443335,1741167046539,-1084.21,0.00011477,2]
[355443336,1741167046548,-773.15,0.00011477,2]
[355443337,1741167046558,-1767.13,0.00011477,2]
[355443338,1741167046568,-1608.51717758,0.00011477,2]
[355443339,1741167046580,-716.60476577,0.00011477,2]
[355443340,1741167046593,-411.88805665,0.00011477,2]
[355443341,1741167046603,-500.0,0.00011477,2]
[355443342,1741167046613,-270.02519183,0.00011477,2]
[355443343,1741167046629,-2280.13480817,0.00011477,2]
[355443344,1741167046639,-4251.96,0.00011477,2]
[355443345,1741167046648,-2057.53,0.00011477,2]
[355443346,1741167046658,-7055.78,0.00011477,2]
[355443347,1741167046668,-2626.25,0.00011477,2]
[355443349,1741167046678,-2134.01,0.00011477,2]
[355443350,1741167046687,-2521.51,0.00011477,2]
[355443351,1741167046696,-1180.25,0.00011477,2]
[355443352,1741167046706,-829.25264836,0.00011477,2]
[355443353,1741167046717,-2212.49976,0.00011477,2]
[355443354,1741167046735,-1104.78759164,0.00011477,2]
[355443355,1741167046744,-907.28264392,0.00011477,2]
[355443356,1741167046770,-1945.66735608,0.00011477,2]
[355443357,1741167046779,-227.69979284,0.00011477,2]
[355443358,1741167046788,-500.0,0.00011477,2]
[355443359,1741167046797,-2881.82,0.00011477,2]
[355443360,1741167046807,-4839.34,0.00011477,2]
[355443361,1741167046817,-5805.06,0.00011477,2]
[355443362,1741167046827,-2746.13,0.00011477,2]
[355443363,1741167046836,-11286.9,0.00011477,2]
[355443364,1741167046846,-2568.93,0.00011477,2]
[355443365,1741167046855,-2021.04,0.00011477,2]
[355443366,1741167046865,-354.67400209,0.00011477,2]
[355443367,1741167046875,-1870.11,0.00011477,2]
[355443368,1741167046884,-2755.07,0.00011477,2]
[355443369,1741167046894,-1015.53,0.00011478,2]
[355443370,1741167046903,-782.98,0.00011478,2]
[355443371,1741167046912,-860.63,0.00011478,2]
[355443372,1741167046922,-500.0,0.00011478,2]
[355443373,1741167046931,-568.54,0.00011478,2]
[355443374,1741167046940,-1144.02,0.00011478,2]
[355443375,1741167046950,-858.0,0.00011478,2]
[355443376,1741167046959,-1297.93,0.00011478,2]
[355443377,1741167046969,-697.64,0.00011478,2]
[355443378,1741167046979,-640.08,0.00011478,2]
[355443379,1741167046989,-616.66,0.00011478,2]
[355443380,1741167046998,-627.13,0.00011478,2]
[355443381,1741167047008,-739.8,0.00011478,2]
[355443382,1741167047017,-1127.87,0.00011478,2]
[355443383,1741167047027,-500.0,0.00011478,2]
[355443384,1741167047036,-605.09,0.00011478,2]
[355443385,1741167047046,-500.0,0.00011478,2]
[355443386,1741167047056,-500.0,0.00011478,2]
[355443387,1741167047067,-500.0,0.00011478,2]
[355443388,1741167047076,-635.49,0.00011478,2]
[355443389,1741167047086,-500.0,0.00011478,2]
[355443390,1741167047095,-500.0,0.00011478,2]
[355443391,1741167047106,-819.79,0.00011478,2]
[355443392,1741167047115,-1298.17,0.00011478,2]
[355443393,1741167047125,-712.79,0.00011478,2]
[355443394,1741167047135,-500.0,0.00011478,2]
[355443395,1741167047144,-688.4,0.00011478,2]
[355443396,1741167047153,-594.23,0.00011478,2]
[355443397,1741167047163,-500.0,0.00011478,2]
[355443398,1741167047172,-1417.91,0.00011478,2]
[355443399,1741167047182,-500.0,0.00011478,2]
[355443400,1741167047191,-591.95,0.00011478,2]
[355443401,1741167047204,-500.0,0.00011478,2]
[355443402,1741167047213,-500.0,0.00011478,2]
[355443403,1741167047222,-739.96,0.00011478,2]
[355443404,1741167047233,-1240.68,0.00011478,2]
[355443405,1741167047242,-500.0,0.00011478,2]
[355443406,1741167047252,-505.73,0.00011478,2]
[355443407,1741167047261,-975.81,0.00011478,2]
[355443408,1741167047271,-186.69909455,0.00011478,2]
[355443409,1741167047280,-665.72,0.00011478,2]
[355443410,1741167047289,-1664.66,0.00011478,2]
[355443411,1741167047298,-617.44,0.00011478,2]
[355443412,1741167047308,-687.55,0.00011478,2]
[355443413,1741167047320,-1929.63,0.00011478,2]
[355443414,1741167047330,-1154.72,0.00011478,2]
[355443415,1741167047339,-681.7,0.00011478,2]
[355443416,1741167047350,-619.26,0.00011478,2]
[355443417,1741167047359,-964.37,0.00011478,2]
[355443418,1741167047369,-1165.15,0.00011478,2]
[355443419,1741167047378,-500.0,0.00011478,2]
[355443420,1741167047387,-1678.28,0.00011478,2]
[355443421,1741167047397,-548.69,0.00011478,2]
[355443422,1741167047406,-578.16,0.00011478,2]
[355443423,1741167047416,-1846.44,0.00011478,2]
[355443424,1741167047425,-676.55198617,0.00011478,2]
[355443425,1741167047478,222.0,0.000201,120]
[355443426,1741167310419,-153.59,0.00010397,2]
[355443427,1741167374135,-153.59,0.00010397,2]
[355443428,1741167408990,-150.0,0.00010492,7]
[355443429,1741167433267,544.56,8.389e-05,2]
[355443430,1741167442389,1000.0,0.00010235,2]
[355443431,1741167443311,891.85,0.00010235,2]
[355443432,1741167461507,-2000.0,0.00010312,2]
[355443433,1741167583285,-250.0,0.00010253,2]
[355443434,1741167587120,222.522192,0.00010202,2]
[355443435,1741167726384,10111.47,0.00010223,2]
[355443436,1741167744054,3152.52,0.00010205,2]
[355443437,1741167745075,-500.0,0.00011479,7]
[355443438,1741167745133,-500.0,0.00011753,7]
[355443439,1741167745190,-500.0,0.00012027,7]
[355443440,1741167750607,-5788.8,0.00010246,2]
[355443441,1741167757102,3107.48,0.00010221,2]
[355443442,1741167762371,23900.0,0.00010232,2]
[355443443,1741167801434,297.88,0.000102,2]
[355443444,1741167801659,297.88,0.00010243,2]
[355443445,1741167809245,-729.06,0.00010254,2]
[355443446,1741167809269,-300.0,0.00010257,2]
[355443447,1741167841412,300.0,0.00010257,2]
[355443448,1741167851668,600.0,0.00010207,2]
[355443449,1741167901500,300.0,0.00010257,2]
[355443450,1741167909036,158.0,0.00010207,3]
[355443451,1741167956199,1405.94,0.0001009,2]
[355443452,1741167956222,694.62,0.0001009,2]
[355443457,1741168025487,1724.24,0.00010109,2]
[355443458,1741168030079,216.21262742,0.00010186,2]
[355443459,1741168095989,-300.0,0.00010257,2]
[355443460,1741168096013,-12700.0,0.00010258,2]
[355443461,1741168134573,166.8,0.000101,2]
[355443465,1741168142648,200.0,0.000101,2]
[355443466,1741168147712,-300.0,0.00010257,2]
[355443467,1741168149072,200.0,0.0001013,2]
[355443468,1741168149718,4769.33,0.00010092,2]
[355443470,1741168157184,200.0,0.0001019,2]
[355443475,1741168181113,500.0,0.0001019,2]
[355443476,1741168190054,2000.0,0.00010091,2]
[355443480,1741168231599,-300.0,0.00010257,2]
[355443481,1741168231611,-732.43087862,0.00010258,2]
[355443482,1741168231765,-8931.61020334,0.00010258,2]
[355443483,1741168231777,-838.4778,0.00010258,2]
[355443484,1741168231789,-5458.6877731,0.00010258,2]
[355443485,1741168231801,-493.78059,0.00010258,2]
[355443486,1741168231880,-20479.80275494,0.00010258,2]
[355443487,1741168231889,-297.88,0.00010286,2]
[355443488,1741168232163,-297.88,0.00010329,2]
[355443489,1741168232174,-150.0,0.00010356,2]
[355443490,1741168232185,-297.88,0.00010372,2]
[355443491,1741168232195,-146.73,0.00010397,2]
[355443492,1741168232205,-168.31,0.00010397,2]
[355443493,1741168232215,-297.88,0.00010415,2]
[355443494,1741168232226,-739.06,0.00010434,2]
[355443495,1741168232236,-330.3,0.00010434,2]
[355443496,1741168232247,-299.99,0.00010434,2]
[355443497,1741168232256,-150.0,0.00010445,2]
[355443498,1741168232266,-169.99,0.00010446,2]
[355443499,1741168232275,-941.38,0.00010446,2]
[355443500,1741168232284,-292.56,0.00010446,2]
[355443501,1741168232294,-150.99,0.00010446,2]
[355443502,1741168232304,-297.88,0.00010457,2]
[355443503,1741168232313,-297.88,0.000105,2]
[355443504,1741168232323,-164.21,0.00010535,2]
[355443505,1741168232333,-297.88,0.00010543,2]
[355443506,1741168232343,-2508.2,0.00010557,2]
[355443507,1741168232353,-297.88,0.00010586,2]
[355443508,1741168232363,-297.88,0.00010629,2]
[355443509,1741168232372,-544.56,0.00010653,2]
[355443510,1741168232382,-297.88,0.00010672,2]
[355443511,1741168232391,-297.88,0.00010715,2]
[355443512,1741168232401,-297.88,0.00010758,2]
[355443513,1741168232410,-297.88,0.00010801,2]
[355443514,1741168232420,-184.55,0.00010802,2]
[355443515,1741168232430,-297.88,0.00010844,2]
[355443516,1741168232440,-297.88,0.00010887,2]
[355443517,1741168232449,-297.88,0.0001093,2]
[355443518,1741168232459,-297.88,0.00010973,2]
[355443519,1741168232469,-4616.11247134,0.0001099,2]
[355443520,1741168232479,-544.11799133,0.00011,2]
[355443521,1741168232499,-5.88200867,0.00011,2]
[355443522,1741168232509,-433.48384815,0.00011005,2]
[355443523,1741168232519,-297.88,0.00011016,2]
[355443524,1741168232530,-1172.4154,0.00011169,2]
[355443525,1741168232540,-892.38367928,0.00011169,2]
[355443526,1741168232552,-397.59062072,0.00011169,2]
[355443527,1741168232562,-2696.46457216,0.0001118,2]
[355443528,1741168232574,-181.27542784,0.0001118,2]
[355443529,1741168232586,-839.457,0.000112,2]
[355443530,1741168232596,-1093.04849619,0.000112,2]
[355443531,1741168232638,-6225.52430381,0.000112,2]
[355443532,1741168232649,-3476.95283459,0.00011204,2]
[355443533,1741168232660,-900.0,0.00011214,2]
[355443534,1741168232669,-2500.0,0.00011214,2]
[355443535,1741168232678,-168.31,0.00011255,2]
[355443536,1741168232688,-3476.95283456,0.00011257,2]
[355443537,1741168232697,-1061.0,0.00011259,2]
[355443538,1741168232707,-622.28883848,0.00011261,2]
[355443539,1741168232717,-181.46351905,0.00011267,2]
[355443540,1741168232727,-757.0407777,0.00011268,2]
[355443541,1741168232736,-315.18454882,0.00011268,2]
[355443542,1741168232746,-217.97537401,0.00011268,2]
[355443543,1741168232755,-150.0,0.00011269,2]
[355443544,1741168232765,-251.04513624,0.00011269,2]
[355443545,1741168232774,-221.4628,0.00011269,2]
[355443546,1741168232784,-15524.0605,0.00011269,2]
[355443547,1741168232794,-9732.639,0.00011269,2]
[355443548,1741168232804,-29140.487,0.00011269,2]
[355443549,1741168232814,-1251.9961,0.00011269,2]
[355443550,1741168232823,-420.0,0.0001128,2]
[355443551,1741168232834,-150.0,0.00011284,2]
[355443552,1741168232843,-150.0,0.00011289,2]
[355443553,1741168232853,-49999.80517,0.000113,2]
[355443554,1741168232863,-1905.8135289,0.0001131,2]
[355443559,1741168237435,-996.48688223,0.0001131,2]
[355443560,1741168237505,6000.0,0.000201,120]
[355443569,1741168238554,-574.65242343,0.0001131,2]
[355443570,1741168238564,-757.04077765,0.00011314,2]
[355443571,1741168238574,-153.5175473,0.00011342,2]
[355443572,1741168238586,-248.13904026,0.00011344,2]
[355443573,1741168238595,-757.04077765,0.0001136,2]
[355443574,1741168238604,-1467.46066,0.0001136,2]
[355443575,1741168238614,-2333.48575404,0.00011363,2]
[355443576,1741168238646,-1143.46708052,0.00011363,2]
[355443577,1741168238658,-500.0,0.00011365,2]
[355443578,1741168238667,-659.67,0.00011365,2]
[355443579,1741168238677,-752.95,0.00011365,2]
[355443580,1741168238687,-500.0,0.00011365,2]
[355443581,1741168238696,-500.0,0.00011365,2]
[355443582,1741168238706,-598.92031948,0.00011366,2]
[355443583,1741168240079,-500.0,0.00011365,2]
[355443584,1741168240089,-170.88938532,0.00011365,2]
[355443612,1741168244321,-1532.08045811,0.00011359,2]
[355443613,1741168244330,-933.08061468,0.00011365,2]
[355443614,1741168244339,-968.39968052,0.00011366,2]
[355443615,1741168244348,-1083.7777945,0.00011366,2]
[355443620,1741168245713,-347.29724799,0.00011366,2]
[355443621,1741168245810,-4.35495751,0.00011366,2]
[355443622,1741168245819,-1134.2,0.00011366,2]
[355443623,1741168245829,-2394.95,0.00011366,2]
[355443624,1741168245838,-500.0,0.00011366,2]
[355443625,1741168245847,-1837.78,0.00011366,2]
[355443626,1741168245856,-2568.96,0.00011366,2]
[355443627,1741168245866,-754.36,0.00011366,2]
[355443628,1741168245876,-3282.63,0.00011366,2]
[355443629,1741168245885,-1461.09,0.00011366,2]
[355443630,1741168245894,-4684.38,0.00011366,2]
[355443631,1741168245903,-2362.92,0.00011366,2]